Workbook

Sheet Лист1
A1: Школа | C1: МБОУ Аржановская СШ | F1: Утвердил: | G1: должность | H1: директор ИП
A2: Типовое примерное меню приготавливаемых блюд | G2: фамилия | H2: Щеглова О.А.
A3: Возрастная категория | E3: 7-11 лет | G3: дата | H3: 1 | I3: 2 | J3: 2026
H4: день | I4: месяц | J4: год
A5: Неделя | B5: День недели | C5: Прием пищи | D5: Раздел меню | E5: Блюда | F5: Вес блюда, г | G5: Белки | H5: Жиры | I5: Углеводы | J5: Калорийность | K5: № рецептуры | L5: Цена
A6: 1 | B6: 1 | C6: Завтрак | D6: гор.блюдо | E6: Каша жидкая молочная с хлопьями овсяными | F6: 210 | G6: 8.92 | H6: 11.21 | I6: 25.8 | J6: 254.8 | K6: ТК№3 | L6: 50
D7: сладкое | E7: Блин с клубничным джемом | F7: 100 | G7: 4 | H7: 7 | I7: 31 | J7: 190 | K7: ТТК №1 | L7: 36.97
D8: гор.напиток | E8: Какао с молоком | F8: 200 | G8: 4.08 | H8: 3.54 | I8: 12.5 | J8: 106.2 | K8: ТК№21 | L8: 27
D9: хлеб | E9: Хлеб пшеничный в/с | F9: 60 | G9: 4.56 | H9: 0.54 | I9: 25.82 | J9: 128 | K9: ТК№25 | L9: 10
D10: фрукты
D11: закуска
D13: итого | F13: =SUM(F6:F12) -> 570 | G13: =SUM(G6:G12) -> 21.56 | H13: 22.29 | I13: 95.12 | J13: 679 | L13: =SUM(L6:L12) -> 123.97
A14: =A6 -> 1 | B14: =B6 -> 1 | C14: Обед | D14: закуска
D15: 1 блюдо
D16: 2 блюдо
D17: гарнир
D18: напиток
D19: хлеб бел.
D20: хлеб черн.
D22: итого | F22: =SUM(F14:F21) -> 0 | G22: =SUM(G14:G21) -> 0 | H22: =SUM(H14:H21) -> 0 | I22: =SUM(I14:I21) -> 0 | J22: =SUM(J14:J21) -> 0 | L22: =SUM(L20:L22) -> 0
A23: =A6 -> 1 | B23: =B6 -> 1 | C23: Итого за день: | F23: =F13+F22 -> 570 | G23: =G13+G22 -> 21.56 | H23: =H13+H22 -> 22.29 | I23: =I13+I22 -> 95.12 | J23: =J13+J22 -> 679 | L23: =SUM(L6,L7,L8,L9) -> 123.97
A24: 1 | B24: 2 | C24: Завтрак | D24: гор.блюдо | E24: Суп молочный с макаронными изделиями | F24: 200 | G24: 8.51 | H24: 11.86 | I24: 26.38 | J24: 245.2 | K24: ТК№9 | L24: 50
D25: гор.блюдо
D26: гор.напиток | E26: Кофейный напиток с молоком | F26: 200 | G26: 4.26 | H26: 2.98 | I26: 11.94 | J26: 112.3 | K26: ТК№22 | L26: 27
D27: хлеб | E27: Хлеб пшеничный в/с | F27: 60 | G27: 4.56 | H27: 0.54 | I27: 25.82 | J27: 128 | K27: ТК№25 | L27: 10
D28: хлеб
D29: закуска
D30: сладкое | E30: Блин с клубничным джемом | F30: 100 | G30: 4 | H30: 7 | I30: 31 | J30: 190 | K30: ТТК№1 | L30: 36.97
D31: итого | F31: =SUM(F24:F30) -> 560 | G31: =SUM(G24:G30) -> 21.33 | H31: =SUM(H24:H30) -> 22.38 | I31: =SUM(I24:I30) -> 95.14 | J31: =SUM(J24:J30) -> 675.5 | L31: =SUM(L24:L30) -> 123.97
A32: =A24 -> 1 | B32: =B24 -> 2 | C32: Обед | D32: закуска
D33: 1 блюдо
D34: 2 блюдо
D35: гарнир
D36: напиток
D37: хлеб бел.
D38: хлеб черн.
D40: итого | F40: =SUM(F32:F39) -> 0 | G40: =SUM(G32:G39) -> 0 | H40: =SUM(H32:H39) -> 0 | I40: =SUM(I32:I39) -> 0 | J40: =SUM(J32:J39) -> 0 | L40: =SUM(L38:L40) -> 0
A41: =A24 -> 1 | B41: =B24 -> 2 | C41: Итого за день: | F41: =F31+F40 -> 560 | G41: =G31+G40 -> 21.33 | H41: =H31+H40 -> 22.38 | I41: =I31+I40 -> 95.14 | J41: =J31+J40 -> 675.5 | L41: 123.97
A42: 1 | B42: 3 | C42: Завтрак | D42: гор.блюдо | E42: Пельмени отборные п/ф со сметаной 180/20 | F42: 200 | G42: 18.05 | H42: 21.8 | I42: 49.6 | J42: 470.18 | K42: ТТК№4 | L42: 90
D43: гор.блюдо
D44: гор.напиток | E44: Чай с сахаром | F44: 210 | G44: 0.07 | H44: 0.2 | I44: 10.01 | J44: 46 | K44: ТК№18 | L44: 4.27
D45: хлеб | E45: Хлеб пшеничный в/с | F45: 40 | G45: 3.04 | H45: 0.36 | I45: 17.21 | J45: 87 | K45: ТК№25 | L45: 6.7
D46: фрукты | E46: Яблоки свежие | F46: 100 | G46: 0.4 | H46: 0.4 | I46: 18.35 | J46: 72.88 | K46: ТК№27 | L46: 23
D47: сладкое
D49: итого | F49: =SUM(F42:F48) -> 550 | G49: =SUM(G42:G48) -> 21.56 | H49: =SUM(H42:H48) -> 22.76 | I49: =SUM(I42:I48) -> 95.17 | J49: =SUM(J42:J48) -> 676.06 | L49: =SUM(L42,L44,L45,L46) -> 123.97
A50: =A42 -> 1 | B50: =B42 -> 3 | C50: Обед | D50: закуска
D51: 1 блюдо
D52: 2 блюдо
D53: гарнир
D54: напиток
D55: хлеб бел.
D56: хлеб черн.
D58: итого | F58: =SUM(F50:F57) -> 0 | G58: =SUM(G50:G57) -> 0 | H58: =SUM(H50:H57) -> 0 | I58: =SUM(I50:I57) -> 0 | J58: =SUM(J50:J57) -> 0 | L58: =SUM(L56:L58) -> 0
A59: =A42 -> 1 | B59: =B42 -> 3 | C59: Итого за день: | F59: =F49+F58 -> 550 | G59: =G49+G58 -> 21.56 | H59: =H49+H58 -> 22.76 | I59: =I49+I58 -> 95.17 | J59: =J49+J58 -> 676.06 | L59: 123.97
A60: 1 | B60: 4 | C60: Завтрак | D60: гор.блюдо | E60: Каша жидкая молочная рисовая | F60: 210 | G60: 7.31 | H60: 9.86 | I60: 26.8 | J60: 255.2 | K60: ТК№7 | L60: 50
D62: гор.напиток | E62: Какао с молоком | F62: 200 | G62: 4.08 | H62: 3.54 | I62: 12.5 | J62: 106.2 | K62: ТК№21 | L62: 27
D63: хлеб | E63: Хлеб пшеничный в/с | F63: 60 | G63: 4.56 | H63: 0.54 | I63: 25.82 | J63: 128 | K63: ТК№25 | L63: 10
D64: фрукты
D65: закуска
D66: сладкое | E66: Блин с клубничным джемом | F66: 100 | G66: 4 | H66: 7 | I66: 31 | J66: 190 | K66: ТТК№1 | L66: 36.97
D67: итого | F67: =SUM(F60:F66) -> 570 | G67: =SUM(G60:G66) -> 19.95 | H67: =SUM(H60:H66) -> 20.94 | I67: =SUM(I60:I66) -> 96.12 | J67: =SUM(J60:J66) -> 679.4 | L67: =SUM(L60:L66) -> 123.97
A68: =A60 -> 1 | B68: =B60 -> 4 | C68: Обед | D68: закуска
D69: 1 блюдо
D70: 2 блюдо
D71: гарнир
D72: напиток
D73: хлеб бел.
D74: хлеб черн.
D76: итого | F76: =SUM(F68:F75) -> 0 | G76: =SUM(G68:G75) -> 0 | H76: =SUM(H68:H75) -> 0 | I76: =SUM(I68:I75) -> 0 | J76: =SUM(J68:J75) -> 0 | L76: =SUM(L74:L76) -> 0
A77: =A60 -> 1 | B77: =B60 -> 4 | C77: Итого за день: | F77: =F67+F76 -> 570 | G77: =G67+G76 -> 19.95 | H77: =H67+H76 -> 20.94 | I77: =I67+I76 -> 96.12 | J77: =J67+J76 -> 679.4 | L77: 123.97
A78: 1 | B78: 5 | C78: Завтрак | D78: гор.блюдо | E78: Плов из птицы (куриное филе) | F78: 250 | G78: 16.1 | H78: 18.65 | I78: 53.71 | J78: 466.78 | K78: ТК№14 | L78: 77
D79: гор.блюдо
D80: гор.напиток | E80: Чай каркаде с сахаром | F80: 210 | G80: 0.1 | H80: 0 | I80: 6.8 | J80: 28.8 | K80: ТК№20 | L80: 6.27
D81: хлеб | E81: Хлеб ржаной | F81: 40 | G81: 2.98 | H81: 0.58 | I81: 15.65 | J81: 83.44 | K81: ТК№26 | L81: 6.7
D82: фрукты
D83: сладкое
D84: закуска | E84: Икра кабачковая | F84: 100 | G84: 1.48 | H84: 3.32 | I84: 19.23 | J84: 91.37 | K84: ТК№28 | L84: 34
D85: итого | F85: =SUM(F78:F84) -> 600 | G85: =SUM(G78:G84) -> 20.66 | H85: =SUM(H78:H84) -> 22.55 | I85: =SUM(I78:I84) -> 95.39 | J85: =SUM(J78:J84) -> 670.39 | L85: 123.97
A86: =A78 -> 1 | B86: =B78 -> 5 | C86: Обед | D86: закуска
D87: 1 блюдо
D88: 2 блюдо
D89: гарнир
D90: напиток
D91: хлеб бел.
D92: хлеб черн.
D94: итого | F94: =SUM(F86:F93) -> 0 | G94: =SUM(G86:G93) -> 0 | H94: =SUM(H86:H93) -> 0 | I94: =SUM(I86:I93) -> 0 | J94: =SUM(J86:J93) -> 0 | L94: =SUM(L92:L94) -> 0
A95: =A78 -> 1 | B95: =B78 -> 5 | C95: Итого за день: | F95: =F85+F94 -> 600 | G95: =G85+G94 -> 20.66 | H95: =H85+H94 -> 22.55 | I95: =I85+I94 -> 95.39 | J95: =J85+J94 -> 670.39 | L95: 123.97
A96: 2 | B96: 1 | C96: Завтрак | D96: гор.блюдо | E96: Каша жидкая молочная манная | F96: 215 | G96: 9.3 | H96: 11.86 | I96: 36.76 | J96: 295.2 | K96: ТК№4 | L96: 65.5
D97: гор.блюдо
D98: гор.напиток | E98: Чай с лимоном | F98: 217 | G98: 0.13 | H98: 0.2 | I98: 15.2 | J98: 62 | K98: ТК№17 | L98: 8.97
D99: хлеб | E99: Хлеб пшеничный в/с | F99: 60 | G99: 4.56 | H99: 0.54 | I99: 25.82 | J99: 128 | K99: ТК№25 | L99: 10
D100: хлеб | E100: Бутерброд с сыром и маслом 40/10/10 | F100: 60 | G100: 6.96 | H100: 9.96 | I100: 17.8 | J100: 188.4 | K100: ТК№2 | L100: 39.5
D101: закуска
D103: итого | F103: =SUM(F96:F102) -> 552 | G103: =SUM(G96:G102) -> 20.95 | H103: =SUM(H96:H102) -> 22.56 | I103: =SUM(I96:I102) -> 95.58 | J103: =SUM(J96:J102) -> 673.6 | L103: =SUM(L96:L102) -> 123.97
A104: =A96 -> 2 | B104: =B96 -> 1 | C104: Обед | D104: закуска
D105: 1 блюдо
D106: 2 блюдо
D107: гарнир
D108: напиток
D109: хлеб бел.
D110: хлеб черн.
D112: итого | F112: =SUM(F104:F111) -> 0 | G112: =SUM(G104:G111) -> 0 | H112: =SUM(H104:H111) -> 0 | I112: =SUM(I104:I111) -> 0 | J112: =SUM(J104:J111) -> 0 | L112: =SUM(L110:L112) -> 0
A113: =A96 -> 2 | B113: =B96 -> 1 | C113: Итого за день: | F113: =F103+F112 -> 552 | G113: =G103+G112 -> 20.95 | H113: =H103+H112 -> 22.56 | I113: =I103+I112 -> 95.58 | J113: =J103+J112 -> 673.6 | L113: 123.97
A114: 2 | B114: 2 | C114: Завтрак | D114: гор.блюдо | E114: Печень по-строгоновски | F114: 100 | G114: 11.06 | H114: 8.34 | I114: 12.57 | J114: 220.87 | K114: ТК№15 | L114: 83.2
D115: гор.блюдо | E115: Каша рассыпчатая гречневая | F115: 180 | G115: 4.42 | H115: 12.18 | I115: 47.52 | J115: 295.2 | K115: ТК№11 | L115: 19.5
D116: гор.напиток | E116: Чай с молоком | F116: 200 | G116: 1.52 | H116: 1.35 | I116: 14.86 | J116: 61 | K116: ТК№19 | L116: 11.27
D117: хлеб | E117: Хлеб ржаной | F117: 60 | G117: 3.96 | H117: 0.72 | I117: 20.52 | J117: 99.24 | K117: ТК№26 | L117: 10
D118: фрукты
D119: закуска
D121: итого | F121: =SUM(F114:F120) -> 540 | G121: =SUM(G114:G120) -> 20.96 | H121: =SUM(H114:H120) -> 22.59 | I121: =SUM(I114:I120) -> 95.47 | J121: =SUM(J114:J120) -> 676.31 | L121: 123.97
A122: =A114 -> 2 | B122: =B114 -> 2 | C122: Обед | D122: закуска
D123: 1 блюдо
D124: 2 блюдо
D125: гарнир
D126: напиток
D127: хлеб бел.
D128: хлеб черн.
D130: итого | F130: =SUM(F122:F129) -> 0 | G130: =SUM(G122:G129) -> 0 | H130: =SUM(H122:H129) -> 0 | I130: =SUM(I122:I129) -> 0 | J130: =SUM(J122:J129) -> 0 | L130: =SUM(L128:L130) -> 0
A131: =A114 -> 2 | B131: =B114 -> 2 | C131: Итого за день: | F131: =F121+F130 -> 540 | G131: =G121+G130 -> 20.96 | H131: =H121+H130 -> 22.59 | I131: =I121+I130 -> 95.47 | J131: =J121+J130 -> 676.31 | L131: 123.97
A132: 2 | B132: 3 | C132: Завтрак | D132: гор.блюдо | E132: Каша жидкая молочная пшенная | F132: 215 | G132: 11.77 | H132: 17.87 | I132: 39.8 | J132: 360.9 | K132: ТК№5 | L132: 54
D133: гор.блюдо
D134: гор.напиток | E134: Кофейный напиток с молоком | F134: 200 | G134: 4.26 | H134: 2.98 | I134: 11.94 | J134: 112.3 | K134: ТК№22 | L134: 27
D135: хлеб | E135: Хлеб пшеничный в/с | F135: 60 | G135: 4.56 | H135: 0.54 | I135: 25.82 | J135: 128 | K135: ТК№25 | L135: 10
D136: фрукты | E136: Яблоки свежие | F136: 100 | G136: 0.4 | H136: 0.4 | I136: 18.35 | J136: 72.88 | K136: ТК№27 | L136: 32.97
D137: сладкое
D139: итого | F139: =SUM(F132:F138) -> 575 | G139: =SUM(G132:G138) -> 20.99 | H139: =SUM(H132:H138) -> 21.79 | I139: =SUM(I132:I138) -> 95.91 | J139: =SUM(J132:J138) -> 674.08 | L139: =SUM(L132:L138) -> 123.97
A140: =A132 -> 2 | B140: =B132 -> 3 | C140: Обед | D140: закуска
D141: 1 блюдо
D142: 2 блюдо
D143: гарнир
D144: напиток
D145: хлеб бел.
D146: хлеб черн.
D148: итого | F148: =SUM(F140:F147) -> 0 | G148: =SUM(G140:G147) -> 0 | H148: =SUM(H140:H147) -> 0 | I148: =SUM(I140:I147) -> 0 | J148: =SUM(J140:J147) -> 0 | L148: =SUM(L146:L148) -> 0
A149: =A132 -> 2 | B149: =B132 -> 3 | C149: Итого за день: | F149: =F139+F148 -> 575 | G149: =G139+G148 -> 20.99 | H149: =H139+H148 -> 21.79 | I149: =I139+I148 -> 95.91 | J149: =J139+J148 -> 674.08 | L149: 123.97
A150: 2 | B150: 4 | C150: Завтрак | D150: гор.блюдо | E150: Котлеты домашние "Люкс" п/ф | F150: 100 | G150: 5.9 | H150: 11.94 | I150: 14.61 | J150: 219.98 | K150: ТТК№2 | L150: 80
D151: гор.блюдо | E151: Макароны отварные 180, с соусом красным основным 100 | F151: 280 | G151: 10.07 | H151: 9.43 | I151: 50.6 | J151: 312.9 | K151: ТК№10 ТК№24 | L151: 29.7
D152: гор.напиток | E152: Чай с сахаром | F152: 210 | G152: 0.07 | H152: 0.2 | I152: 10.01 | J152: 46 | K152: ТК№18 | L152: 4.27
D153: хлеб | E153: Хлеб ржаной | F153: 60 | G153: 3.96 | H153: 0.72 | I153: 20.52 | J153: 99.24 | K153: ТК№26 | L153: 10
D154: фрукты
D155: сладкое
D157: итого | F157: =SUM(F150:F156) -> 650 | G157: =SUM(G150:G156) -> 20 | H157: =SUM(H150:H156) -> 22.29 | I157: =SUM(I150:I156) -> 95.74 | J157: =SUM(J150:J156) -> 678.12 | L157: 123.97
A158: =A150 -> 2 | B158: =B150 -> 4 | C158: Обед | D158: закуска
D159: 1 блюдо
D160: 2 блюдо
D161: гарнир
D162: напиток
D163: хлеб бел.
D164: хлеб черн.
D166: итого | F166: =SUM(F158:F165) -> 0 | G166: =SUM(G158:G165) -> 0 | H166: =SUM(H158:H165) -> 0 | I166: =SUM(I158:I165) -> 0 | J166: =SUM(J158:J165) -> 0 | L166: =SUM(L164:L166) -> 0
A167: =A150 -> 2 | B167: =B150 -> 4 | C167: Итого за день: | F167: =F157+F166 -> 650 | G167: =G157+G166 -> 20 | H167: =H157+H166 -> 22.29 | I167: =I157+I166 -> 95.74 | J167: =J157+J166 -> 678.12 | L167: 123.97
A168: 2 | B168: 5 | C168: Завтрак | D168: гор.блюдо | E168: Каша жидкая молочная гречневая | F168: 210 | G168: 8.19 | H168: 11.89 | I168: 26.45 | J168: 256.2 | K168: ТК№8 | L168: 50
D169: гор.блюдо
D170: гор.напиток | E170: Какао с молоком | F170: 200 | G170: 4.08 | H170: 3.54 | I170: 12.5 | J170: 106.2 | K170: ТК№21 | L170: 27
D171: хлеб | E171: Хлеб пшеничный в/с | F171: 60 | G171: 4.56 | H171: 0.54 | I171: 25.82 | J171: 128 | K171: ТК№25 | L171: 10
D172: фрукты
D173: закуска
D174: сладкое | E174: Блин с клубничным джемом | F174: 100 | G174: 4 | H174: 7 | I174: 31 | J174: 190 | K174: ТТК№1 | L174: 36.97
D175: итого | F175: =SUM(F168:F174) -> 570 | G175: =SUM(G168:G174) -> 20.83 | H175: =SUM(H168:H174) -> 22.97 | I175: =SUM(I168:I174) -> 95.77 | J175: =SUM(J168:J174) -> 680.4 | L175: =SUM(L168:L174) -> 123.97
A176: =A168 -> 2 | B176: =B168 -> 5 | C176: Обед | D176: закуска
D177: 1 блюдо
D178: 2 блюдо
D179: гарнир
D180: напиток
D181: хлеб бел.
D182: хлеб черн.
D184: итого | F184: =SUM(F176:F183) -> 0 | G184: =SUM(G176:G183) -> 0 | H184: =SUM(H176:H183) -> 0 | I184: =SUM(I176:I183) -> 0 | J184: =SUM(J176:J183) -> 0 | L184: =SUM(L182:L184) -> 0
A185: =A168 -> 2 | B185: =B168 -> 5 | C185: Итого за день: | F185: =F175+F184 -> 570 | G185: =G175+G184 -> 20.83 | H185: 22.97 | I185: 95.77 | J185: 680.4 | L185: 123.97
A186: 3 | B186: 1 | C186: Завтрак | D186: гор.блюдо | E186: Вареники с картофелем п/ф со сметаной 180/20 | F186: 200 | G186: 11.72 | H186: 13.82 | I186: 23.58 | J186: 301.25 | K186: ТТК№5 | L186: 65.73
D187: гор.блюдо
D188: гор.напиток | E188: Чай с молоком | F188: 210 | G188: 1.52 | H188: 1.35 | I188: 14.86 | J188: 61 | K188: ТК№19 | L188: 11.27
D189: хлеб | E189: Хлеб пшеничный в/с | F189: 60 | G189: 4.56 | H189: 0.54 | I189: 25.82 | J189: 128 | K189: ТК№25 | L189: 10.00
D190: фрукты
D191: сладкое | E191: Блин с клубничным джемом | F191: 100 | G191: 4 | H191: 7 | I191: 31 | J191: 190 | K191: ТТК№1 | L191: 36.97
D193: итого | F193: =SUM(F186:F192) -> 570 | G193: =SUM(G186:G192) -> 21.8 | H193: =SUM(H186:H192) -> 22.71 | I193: =SUM(I186:I192) -> 95.26 | J193: =SUM(J186:J192) -> 680.25 | L193: 123.97
A194: =A186 -> 3 | B194: =B186 -> 1 | C194: Обед | D194: закуска
D195: 1 блюдо
D196: 2 блюдо
D197: гарнир
D198: напиток
D199: хлеб бел.
D200: хлеб черн.
D202: итого | F202: =SUM(F194:F201) -> 0 | G202: =SUM(G194:G201) -> 0 | H202: =SUM(H194:H201) -> 0 | I202: =SUM(I194:I201) -> 0 | J202: =SUM(J194:J201) -> 0 | L202: =SUM(L200:L202) -> 0
A203: =A186 -> 3 | B203: =B186 -> 1 | C203: Итого за день: | F203: =F193+F202 -> 570 | G203: =G193+G202 -> 21.8 | H203: 22.71 | I203: 95.26 | J203: 680.25 | L203: =SUM(L186,L188,L189,L191) -> 123.97
A204: 3 | B204: 2 | C204: Завтрак | D204: гор.блюдо | E204: Филе птицы (куриное) с соусом сметанным | F204: 100 | G204: 11.16 | H204: 16.51 | I204: 10.5 | J204: 267.5 | K204: ТК№16 | L204: 81.00
D205: гор.блюдо | E205: Каша рассыпчатая перловая | F205: 180 | G205: 5.42 | H205: 5.09 | I205: 48.93 | J205: 251.2 | K205: ТК№13 | L205: 24.00
D206: гор.напиток | E206: Чай с лимоном | F206: 217 | G206: 0.13 | H206: 0.2 | I206: 15.2 | J206: 62 | K206: ТК№17 | L206: 8.97
D207: хлеб | E207: Хлеб ржаной | F207: 60 | G207: 3.96 | H207: 0.72 | I207: 20.52 | J207: 99.24 | K207: ТК№26 | L207: 10.00
D208: закуска
D211: итого | F211: =SUM(F204:F210) -> 557 | G211: =SUM(G204:G210) -> 20.67 | H211: =SUM(H204:H210) -> 22.52 | I211: =SUM(I204:I210) -> 95.15 | J211: =SUM(J204:J210) -> 679.94 | L211: =SUM(L204:L210) -> 123.97
A212: =A204 -> 3 | B212: =B204 -> 2 | C212: Обед | D212: закуска
D213: 1 блюдо
D214: 2 блюдо
D215: гарнир
D216: напиток
D217: хлеб бел.
D218: хлеб черн.
D220: итого | F220: =SUM(F212:F219) -> 0 | G220: =SUM(G212:G219) -> 0 | H220: =SUM(H212:H219) -> 0 | I220: =SUM(I212:I219) -> 0 | J220: =SUM(J212:J219) -> 0 | L220: =SUM(L218:L220) -> 0
A221: =A204 -> 3 | B221: =B204 -> 2 | C221: Итого за день: | F221: =F211+F220 -> 557 | G221: =G211+G220 -> 20.67 | H221: 22.52 | I221: 95.15 | J221: 679.94 | L221: 123.97
A222: 3 | B222: 3 | C222: Завтрак | D222: гор.блюдо | E222: Каша вязкая молочная из пшена и риса "Дружба" | F222: 210 | G222: 7.21 | H222: 11.73 | I222: 26.71 | J222: 249 | K222: ТК№6 | L222: 50.00
... 48 more rows
